[Event "Titled Tuesday Blitz April 12 Early 2022"]
[White "Oganian, Miran"]
[Black "Grandelius, Nils"]
[WhiteFideId "4122488"]
[BlackFideId "1710400"]
[WhiteElo "2357"]
[BlackElo "2617"]
[Result "1/2-1/2"]
[Round "05"]
[TimeControl "180+1"]
[Date "2022.04.12"]
[WhiteClock "0:00:13"]
[BlackClock "0:00:18"]

1. e4 {[%clk 0:02:59]}  c5 {[%clk 0:02:58]} 2. Nf3 {[%clk 0:02:59]}  d6 {[%clk 0:02:59]} 3. Bb5+ {[%clk 0:02:59]}  Nd7 {[%clk 0:02:58]} 4. d4 {[%clk 0:02:59]}  cxd4 {[%clk 0:02:59]} 5. Qxd4 {[%clk 0:03:00]}  a6 {[%clk 0:02:59]} 6. Bxd7+ {[%clk 0:03:00]}  Bxd7 {[%clk 0:03:00]} 7. c4 {[%clk 0:03:01]}  Nf6 {[%clk 0:02:53]} 8. Bg5 {[%clk 0:03:01]}  e6 {[%clk 0:02:50]} 9. Nc3 {[%clk 0:03:01]}  Be7 {[%clk 0:02:50]} 10. O-O {[%clk 0:03:01]}  Bc6 {[%clk 0:02:47]} 11. Qd3 {[%clk 0:02:59]}  h6 {[%clk 0:02:46]} 12. Bh4 {[%clk 0:02:55]}  Qa5 {[%clk 0:02:45]} 13. Rfe1 {[%clk 0:02:43]}  Rd8 {[%clk 0:02:42]} 14. Nd5 {[%clk 0:02:37]}  Bxd5 {[%clk 0:02:29]} 15. exd5 {[%clk 0:02:36]}  e5 {[%clk 0:02:29]} 16. b4 {[%clk 0:02:14]}  Qc7 {[%clk 0:02:25]} 17. c5 {[%clk 0:01:57]}  O-O {[%clk 0:01:41]} 18. Nxe5 {[%clk 0:01:41]}  dxc5 {[%clk 0:01:00]} 19. Qf3 {[%clk 0:00:32]}  Nxd5 {[%clk 0:00:51]} 20. Bg3 {[%clk 0:00:27]}  Qc8 {[%clk 0:00:39]} 21. bxc5 {[%clk 0:00:25]}  Bxc5 {[%clk 0:00:29]} 22. Rad1 {[%clk 0:00:23]}  Nb4 {[%clk 0:00:20]} 23. Rc1 {[%clk 0:00:21]}  b6 {[%clk 0:00:20]} 24. a3 {[%clk 0:00:19]}  Nd5 {[%clk 0:00:20]} 25. Rcd1 {[%clk 0:00:19]}  Qa8 {[%clk 0:00:19]} 26. Bh4 {[%clk 0:00:17]}  Rd6 {[%clk 0:00:17]} 27. Nc4 {[%clk 0:00:16]}  Rd7 {[%clk 0:00:16]} 28. Ne5 {[%clk 0:00:16]}  Rd6 {[%clk 0:00:16]} 29. Nc4 {[%clk 0:00:15]}  Rd7 {[%clk 0:00:17]} 30. Ne5 {[%clk 0:00:13]}  Rd6 {[%clk 0:00:18]} 1/2-1/2


[Site "https://www.chess.com"]

[Event "Titled Tuesday Blitz April 12 Early 2022"]
[White "Omariev, Maksim"]
[Black "Srihari L R"]
[WhiteFideId "4193423"]
[BlackFideId "46617116"]
[WhiteElo "2495"]
[BlackElo "2121"]
[Result "0-1"]
[Round "05"]
[TimeControl "180+1"]
[Date "2022.04.13"]
[WhiteClock "0:00:01"]
[BlackClock "0:01:01"]

1. g4 {[%clk 0:03:00]}  d6 {[%clk 0:02:58]} 2. Bg2 {[%clk 0:03:01]}  c6 {[%clk 0:02:54]} 3. h3 {[%clk 0:03:00]}  e5 {[%clk 0:02:51]} 4. d4 {[%clk 0:03:00]}  Nf6 {[%clk 0:02:47]} 5. dxe5 {[%clk 0:02:57]}  dxe5 {[%clk 0:02:41]} 6. Qxd8+ {[%clk 0:02:58]}  Kxd8 {[%clk 0:02:42]} 7. Nf3 {[%clk 0:02:59]}  Bd6 {[%clk 0:02:40]} 8. Nc3 {[%clk 0:02:52]}  Ke7 {[%clk 0:02:29]} 9. Bg5 {[%clk 0:02:49]}  Nd7 {[%clk 0:02:26]} 10. O-O-O {[%clk 0:02:46]}  h6 {[%clk 0:02:22]} 11. Ne4 {[%clk 0:02:27]}  Bc7 {[%clk 0:02:13]} 12. Bh4 {[%clk 0:02:17]}  g5 {[%clk 0:02:01]} 13. Nxf6 {[%clk 0:02:10]}  Nxf6 {[%clk 0:02:02]} 14. Bg3 {[%clk 0:02:10]}  Ne4 {[%clk 0:02:00]} 15. Rhf1 {[%clk 0:01:07]}  Nxg3 {[%clk 0:01:57]} 16. fxg3 {[%clk 0:01:08]}  f6 {[%clk 0:01:57]} 17. Nd2 {[%clk 0:01:05]}  h5 {[%clk 0:01:52]} 18. gxh5 {[%clk 0:01:03]}  Rxh5 {[%clk 0:01:50]} 19. g4 {[%clk 0:01:03]}  Rh6 {[%clk 0:01:49]} 20. Ne4 {[%clk 0:00:57]}  Be6 {[%clk 0:01:47]} 21. Rd3 {[%clk 0:00:54]}  Bd5 {[%clk 0:01:42]} 22. Rfd1 {[%clk 0:00:28]}  Rd8 {[%clk 0:01:35]} 23. Ng3 {[%clk 0:00:22]}  Be6 {[%clk 0:01:22]} 24. Rxd8 {[%clk 0:00:19]}  Bxd8 {[%clk 0:01:22]} 25. Rf1 {[%clk 0:00:11]}  Rh8 {[%clk 0:01:20]} 26. b3 {[%clk 0:00:11]}  Bb6 {[%clk 0:01:18]} 27. c4 {[%clk 0:00:08]}  Be3+ {[%clk 0:01:18]} 28. Kc2 {[%clk 0:00:09]}  Bf4 {[%clk 0:01:17]} 29. Ne4 {[%clk 0:00:09]}  Rf8 {[%clk 0:01:08]} 30. Nc5 {[%clk 0:00:07]}  Bc8 {[%clk 0:01:08]} 31. Rf3 {[%clk 0:00:03]}  f5 {[%clk 0:01:04]} 32. e3 {[%clk 0:00:02]}  fxg4 {[%clk 0:01:00]} 33. hxg4 {[%clk 0:00:01]}  Bxg4 {[%clk 0:01:01]} 0-1


[Site "https://www.chess.com"]

[Event "Titled Tuesday Blitz April 12 Early 2022"]
[White "Pajeken, Jakob Leon"]
[Black "Zakhartsov, Vladimir"]
[WhiteFideId "12942839"]
[BlackFideId "4145097"]
[WhiteElo "2351"]
[BlackElo "2491"]
[Result "1-0"]
[Round "05"]
[TimeControl "180+1"]
[Date "2022.04.12"]
[WhiteClock "0:01:47"]
[BlackClock "0:01:03"]

1. d4 {[%clk 0:02:55]}  Nf6 {[%clk 0:02:59]} 2. Nf3 {[%clk 0:02:54]}  d5 {[%clk 0:02:53]} 3. c4 {[%clk 0:02:53]}  e6 {[%clk 0:02:53]} 4. Nc3 {[%clk 0:02:54]}  Bb4 {[%clk 0:02:50]} 5. g3 {[%clk 0:02:53]}  O-O {[%clk 0:02:50]} 6. Bg2 {[%clk 0:02:52]}  dxc4 {[%clk 0:02:50]} 7. O-O {[%clk 0:02:51]}  c5 {[%clk 0:02:50]} 8. dxc5 {[%clk 0:02:42]}  Qxd1 {[%clk 0:02:24]} 9. Rxd1 {[%clk 0:02:41]}  Bxc5 {[%clk 0:02:21]} 10. Ne5 {[%clk 0:02:39]}  Nc6 {[%clk 0:02:19]} 11. Nxc4 {[%clk 0:02:28]}  Bd7 {[%clk 0:02:16]} 12. Bg5 {[%clk 0:02:27]}  Rfd8 {[%clk 0:02:15]} 13. Ne4 {[%clk 0:02:07]}  Nxe4 {[%clk 0:01:49]} 14. Bxd8 {[%clk 0:01:56]}  Nxf2 {[%clk 0:01:03]} 15. Rxd7 {[%clk 0:01:55]}  Nxd8 {[%clk 0:01:03]} 16. b4 {[%clk 0:01:47]} 1-0


[Site "https://www.chess.com"]

[Event "Titled Tuesday Blitz April 12 Early 2022"]
[White "Papp, Levente"]
[Black "Lopez, Henry"]
[WhiteFideId "751243"]
[BlackFideId "5203830"]
[WhiteElo "2308"]
[BlackElo "2177"]
[Result "1-0"]
[Round "05"]
[TimeControl "180+1"]
[Date "2022.04.13"]
[WhiteClock "0:00:10"]
[BlackClock "0:00:04"]

1. c4 {[%clk 0:03:00]}  Nf6 {[%clk 0:02:59]} 2. Nc3 {[%clk 0:03:00]}  g6 {[%clk 0:02:58]} 3. e4 {[%clk 0:03:01]}  d6 {[%clk 0:02:58]} 4. g3 {[%clk 0:03:01]}  Bg7 {[%clk 0:02:58]} 5. Bg2 {[%clk 0:03:02]}  O-O {[%clk 0:02:58]} 6. Nge2 {[%clk 0:03:02]}  c5 {[%clk 0:02:59]} 7. O-O {[%clk 0:03:03]}  Nc6 {[%clk 0:02:59]} 8. d3 {[%clk 0:03:04]}  Ne8 {[%clk 0:02:59]} 9. Rb1 {[%clk 0:03:04]}  Nc7 {[%clk 0:02:58]} 10. a3 {[%clk 0:03:05]}  a5 {[%clk 0:02:58]} 11. Be3 {[%clk 0:02:57]}  Ne6 {[%clk 0:02:58]} 12. Qd2 {[%clk 0:02:47]}  Rb8 {[%clk 0:02:54]} 13. Nb5 {[%clk 0:02:42]}  Ned4 {[%clk 0:02:50]} 14. Nexd4 {[%clk 0:02:39]}  Nxd4 {[%clk 0:02:37]} 15. b4 {[%clk 0:02:36]}  Nxb5 {[%clk 0:02:31]} 16. cxb5 {[%clk 0:02:35]}  cxb4 {[%clk 0:02:30]} 17. axb4 {[%clk 0:02:36]}  a4 {[%clk 0:02:28]} 18. Qa2 {[%clk 0:01:31]}  Bd7 {[%clk 0:02:21]} 19. Qxa4 {[%clk 0:01:29]}  Ra8 {[%clk 0:02:20]} 20. Qb3 {[%clk 0:01:28]}  Bxb5 {[%clk 0:02:20]} 21. Rfc1 {[%clk 0:01:27]}  Qd7 {[%clk 0:02:18]} 22. d4 {[%clk 0:01:24]}  Rfc8 {[%clk 0:02:16]} 23. h4 {[%clk 0:01:16]}  h5 {[%clk 0:02:11]} 24. Kh2 {[%clk 0:01:15]}  Ba4 {[%clk 0:01:46]} 25. Qb2 {[%clk 0:01:15]}  Rxc1 {[%clk 0:01:39]} 26. Rxc1 {[%clk 0:01:15]}  Rc8 {[%clk 0:01:35]} 27. Bf1 {[%clk 0:00:58]}  Rxc1 {[%clk 0:01:32]} 28. Qxc1 {[%clk 0:00:59]}  Bb5 {[%clk 0:01:28]} 29. Bg2 {[%clk 0:00:58]}  e6 {[%clk 0:01:20]} 30. Qa3 {[%clk 0:00:56]}  Bc6 {[%clk 0:01:14]} 31. Qa7 {[%clk 0:00:51]}  e5 {[%clk 0:01:09]} 32. d5 {[%clk 0:00:48]}  Bb5 {[%clk 0:01:08]} 33. Qb8+ {[%clk 0:00:48]}  Kh7 {[%clk 0:01:07]} 34. Bh3 {[%clk 0:00:48]}  Qe7 {[%clk 0:01:02]} 35. f3 {[%clk 0:00:39]}  Bf6 {[%clk 0:00:49]} 36. Bc8 {[%clk 0:00:33]}  Ba6 {[%clk 0:00:47]} 37. Bh3 {[%clk 0:00:29]}  Bb5 {[%clk 0:00:45]} 38. Qc8 {[%clk 0:00:27]}  Kg7 {[%clk 0:00:36]} 39. Bb6 {[%clk 0:00:23]}  Ba6 {[%clk 0:00:33]} 40. Bc7 {[%clk 0:00:20]}  g5 {[%clk 0:00:19]} 41. hxg5 {[%clk 0:00:19]}  Bxg5 {[%clk 0:00:19]} 42. Qb8 {[%clk 0:00:19]}  Qf6 {[%clk 0:00:19]} 43. Bf5 {[%clk 0:00:19]}  h4 {[%clk 0:00:18]} 44. Bxd6 {[%clk 0:00:19]}  hxg3+ {[%clk 0:00:18]} 45. Kg2 {[%clk 0:00:19]}  Qd8 {[%clk 0:00:12]} 46. Bxe5+ {[%clk 0:00:18]}  Kh6 {[%clk 0:00:11]} 47. Bxg3 {[%clk 0:00:16]}  Qxb8 {[%clk 0:00:09]} 48. Bxb8 {[%clk 0:00:17]}  Bd2 {[%clk 0:00:08]} 49. Bd6 {[%clk 0:00:13]}  Kg5 {[%clk 0:00:07]} 50. Be7+ {[%clk 0:00:12]}  Kf4 {[%clk 0:00:06]} 51. Bf8 {[%clk 0:00:11]}  Ke5 {[%clk 0:00:05]} 52. d6 {[%clk 0:00:10]}  Bb5 {[%clk 0:00:04]} 53. d7 {[%clk 0:00:10]} 1-0


[Site "https://www.chess.com"]

[Event "Titled Tuesday Blitz April 12 Early 2022"]
[White "Piliczewski, Bogusz"]
[Black "Estrada Nieto, Julian"]
[WhiteFideId "1104144"]
[BlackFideId "5101018"]
[WhiteElo "1896"]
[BlackElo "2252"]
[Result "0-1"]
[Round "05"]
[TimeControl "180+1"]
[Date "2022.04.13"]
[WhiteClock "0:00:03"]
[BlackClock "0:00:51"]

1. d4 {[%clk 0:02:49]}  d5 {[%clk 0:02:56]} 2. Nf3 {[%clk 0:02:48]}  Nf6 {[%clk 0:02:55]} 3. c4 {[%clk 0:02:42]}  dxc4 {[%clk 0:02:56]} 4. e3 {[%clk 0:02:41]}  e6 {[%clk 0:02:56]} 5. Bxc4 {[%clk 0:02:41]}  c5 {[%clk 0:02:56]} 6. Nc3 {[%clk 0:02:40]}  a6 {[%clk 0:02:56]} 7. a4 {[%clk 0:02:39]}  Nc6 {[%clk 0:02:57]} 8. O-O {[%clk 0:02:36]}  Be7 {[%clk 0:02:57]} 9. Qe2 {[%clk 0:02:20]}  cxd4 {[%clk 0:02:56]} 10. Rd1 {[%clk 0:02:20]}  e5 {[%clk 0:02:57]} 11. exd4 {[%clk 0:02:17]}  exd4 {[%clk 0:02:57]} 12. Be3 {[%clk 0:02:11]}  Bg4 {[%clk 0:02:56]} 13. Rd2 {[%clk 0:01:27]}  O-O {[%clk 0:02:54]} 14. Rad1 {[%clk 0:01:25]}  Bc5 {[%clk 0:02:44]} 15. h3 {[%clk 0:01:14]}  Bxf3 {[%clk 0:02:37]} 16. Qxf3 {[%clk 0:01:13]}  Ne5 {[%clk 0:02:30]} 17. Qe2 {[%clk 0:01:03]}  Nc6 {[%clk 0:01:22]} 18. f3 {[%clk 0:01:02]}  Qc7 {[%clk 0:01:14]} 19. Bxd4 {[%clk 0:00:50]}  Nxd4 {[%clk 0:01:13]} 20. Rxd4 {[%clk 0:00:47]}  Bxd4+ {[%clk 0:01:12]} 21. Rxd4 {[%clk 0:00:37]}  Qb6 {[%clk 0:01:12]} 22. Qf2 {[%clk 0:00:25]}  Rad8 {[%clk 0:01:12]} 23. Rxd8 {[%clk 0:00:24]}  Qxf2+ {[%clk 0:01:11]} 24. Kxf2 {[%clk 0:00:24]}  Rxd8 {[%clk 0:01:11]} 25. Ke3 {[%clk 0:00:22]}  Kf8 {[%clk 0:01:10]} 26. b4 {[%clk 0:00:14]}  Ke7 {[%clk 0:01:09]} 27. b5 {[%clk 0:00:12]}  a5 {[%clk 0:01:09]} 28. Ne4 {[%clk 0:00:06]}  Nxe4 {[%clk 0:01:08]} 29. fxe4 {[%clk 0:00:06]}  f6 {[%clk 0:01:07]} 30. Bd5 {[%clk 0:00:05]}  b6 {[%clk 0:01:05]} 31. g4 {[%clk 0:00:06]}  Kd6 {[%clk 0:01:05]} 32. Kd4 {[%clk 0:00:05]}  Rc8 {[%clk 0:01:03]} 33. Bc6 {[%clk 0:00:05]}  h5 {[%clk 0:00:51]} 34. gxh5 {[%clk 0:00:03]}  Rh8 {[%clk 0:00:51]} 0-1


[Site "https://www.chess.com"]

[Event "Titled Tuesday Blitz April 12 Early 2022"]
[White "Pinheiro, Iung Alicio de O."]
[Black "Ferreira, Vitor Hugo Vieira"]
[WhiteFideId "2104350"]
[BlackFideId "2119765"]
[WhiteElo "2596"]
[BlackElo "2165"]
[Result "0-1"]
[Round "05"]
[TimeControl "180+1"]
[Date "2022.04.13"]
[WhiteClock "0:00:26"]
[BlackClock "0:00:39"]

1. c4 {[%clk 0:03:00]}  Nf6 {[%clk 0:02:59]} 2. g3 {[%clk 0:03:00]}  g6 {[%clk 0:02:59]} 3. Bg2 {[%clk 0:03:00]}  Bg7 {[%clk 0:02:59]} 4. Nc3 {[%clk 0:03:00]}  O-O {[%clk 0:02:59]} 5. d3 {[%clk 0:03:01]}  c6 {[%clk 0:02:58]} 6. e4 {[%clk 0:02:55]}  d5 {[%clk 0:02:45]} 7. cxd5 {[%clk 0:02:47]}  cxd5 {[%clk 0:02:45]} 8. e5 {[%clk 0:02:48]}  Nfd7 {[%clk 0:02:43]} 9. d4 {[%clk 0:02:47]}  e6 {[%clk 0:02:40]} 10. Nf3 {[%clk 0:02:28]}  f6 {[%clk 0:02:39]} 11. exf6 {[%clk 0:02:27]}  Nxf6 {[%clk 0:02:39]} 12. O-O {[%clk 0:02:27]}  Nc6 {[%clk 0:02:39]} 13. Re1 {[%clk 0:02:24]}  Bd7 {[%clk 0:02:39]} 14. Bg5 {[%clk 0:02:12]}  Qb6 {[%clk 0:02:38]} 15. Qd2 {[%clk 0:02:11]}  Rae8 {[%clk 0:02:36]} 16. Bh6 {[%clk 0:02:07]}  Bxh6 {[%clk 0:02:22]} 17. Qxh6 {[%clk 0:02:08]}  Qxb2 {[%clk 0:02:22]} 18. Na4 {[%clk 0:01:24]}  Qxf2+ {[%clk 0:02:20]} 19. Kh1 {[%clk 0:01:14]}  Ng4 {[%clk 0:02:16]} 20. Qh4 {[%clk 0:01:11]}  Ne3 {[%clk 0:01:56]} 21. Rxe3 {[%clk 0:01:01]}  Qxe3 {[%clk 0:01:54]} 22. Nc5 {[%clk 0:00:56]}  Bc8 {[%clk 0:01:46]} 23. Ng5 {[%clk 0:00:56]}  Re7 {[%clk 0:01:36]} 24. Nb3 {[%clk 0:00:51]}  Rf5 {[%clk 0:01:29]} 25. Nh3 {[%clk 0:00:46]}  Ref7 {[%clk 0:01:16]} 26. g4 {[%clk 0:00:33]}  Rf4 {[%clk 0:00:43]} 27. Nxf4 {[%clk 0:00:32]}  Rxf4 {[%clk 0:00:43]} 28. Re1 {[%clk 0:00:31]}  Qf2 {[%clk 0:00:41]} 29. Qxf2 {[%clk 0:00:31]}  Rxf2 {[%clk 0:00:42]} 30. Bxd5 {[%clk 0:00:25]}  exd5 {[%clk 0:00:40]} 31. Re8+ {[%clk 0:00:26]}  Rf8 {[%clk 0:00:40]} 32. Rxc8 {[%clk 0:00:26]}  Rxc8 {[%clk 0:00:39]} 0-1


[Site "https://www.chess.com"]

[Event "Titled Tuesday Blitz April 12 Early 2022"]
[White "Pourkashiyan, Atousa"]
[Black "Mangialardo, Tiago Carvalho"]
[WhiteFideId "12502014"]
[BlackFideId "2130718"]
[WhiteElo "2247"]
[BlackElo "2051"]
[Result "0-1"]
[Round "05"]
[TimeControl "180+1"]
[Date "2022.04.13"]
[WhiteClock "0:00:01"]
[BlackClock "0:00:02"]

1. e4 {[%clk 0:02:48]}  Nf6 {[%clk 0:03:00]} 2. e5 {[%clk 0:02:48]}  Nd5 {[%clk 0:03:01]} 3. d4 {[%clk 0:02:49]}  d6 {[%clk 0:03:01]} 4. Nf3 {[%clk 0:02:49]}  Nc6 {[%clk 0:03:01]} 5. c4 {[%clk 0:02:48]}  Nb6 {[%clk 0:03:01]} 6. exd6 {[%clk 0:02:48]}  exd6 {[%clk 0:03:01]} 7. Be2 {[%clk 0:02:48]}  Bg4 {[%clk 0:03:01]} 8. O-O {[%clk 0:02:35]}  Be7 {[%clk 0:03:01]} 9. d5 {[%clk 0:02:13]}  Ne5 {[%clk 0:01:57]} 10. Nxe5 {[%clk 0:02:11]}  Bxe2 {[%clk 0:01:58]} 11. Qxe2 {[%clk 0:02:11]}  dxe5 {[%clk 0:01:58]} 12. Qxe5 {[%clk 0:02:11]}  O-O {[%clk 0:01:58]} 13. Qe2 {[%clk 0:02:05]}  Re8 {[%clk 0:01:54]} 14. Qc2 {[%clk 0:02:04]}  Bd6 {[%clk 0:01:52]} 15. g3 {[%clk 0:01:59]}  Nd7 {[%clk 0:01:45]} 16. Nd2 {[%clk 0:01:50]}  Qe7 {[%clk 0:01:33]} 17. Nf3 {[%clk 0:01:46]}  Qe2 {[%clk 0:01:23]} 18. Qxe2 {[%clk 0:01:29]}  Rxe2 {[%clk 0:01:24]} 19. Re1 {[%clk 0:01:29]}  Rae8 {[%clk 0:01:11]} 20. Kf1 {[%clk 0:01:19]}  Rxe1+ {[%clk 0:01:07]} 21. Nxe1 {[%clk 0:01:20]}  Ne5 {[%clk 0:00:56]} 22. b3 {[%clk 0:01:16]}  Ng4 {[%clk 0:00:48]} 23. Nf3 {[%clk 0:01:02]}  Bc5 {[%clk 0:00:41]} 24. Bf4 {[%clk 0:01:01]}  c6 {[%clk 0:00:30]} 25. d6 {[%clk 0:00:50]}  Nxf2 {[%clk 0:00:29]} 26. Re1 {[%clk 0:00:26]}  Rd8 {[%clk 0:00:25]} 27. d7 {[%clk 0:00:26]}  Kf8 {[%clk 0:00:19]} 28. Ne5 {[%clk 0:00:22]}  f6 {[%clk 0:00:13]} 29. Nf3 {[%clk 0:00:14]}  Rxd7 {[%clk 0:00:10]} 30. Bb8 {[%clk 0:00:14]}  Nd3 {[%clk 0:00:06]} 31. Rd1 {[%clk 0:00:13]}  Ke7 {[%clk 0:00:05]} 32. Ke2 {[%clk 0:00:10]}  Nb4 {[%clk 0:00:03]} 33. Rxd7+ {[%clk 0:00:10]}  Kxd7 {[%clk 0:00:03]} 34. a3 {[%clk 0:00:10]}  Na6 {[%clk 0:00:04]} 35. Bf4 {[%clk 0:00:08]}  Bxa3 {[%clk 0:00:04]} 36. Nd4 {[%clk 0:00:09]}  Nc5 {[%clk 0:00:04]} 37. Bd2 {[%clk 0:00:07]}  Bb2 {[%clk 0:00:04]} 38. Nf5 {[%clk 0:00:06]}  g6 {[%clk 0:00:04]} 39. Nh6 {[%clk 0:00:03]}  Nxb3 {[%clk 0:00:03]} 40. Be3 {[%clk 0:00:02]}  Bd4 {[%clk 0:00:03]} 41. Bf4 {[%clk 0:00:01]}  Nc5 {[%clk 0:00:03]} 42. Ng4 {[%clk 0:00:01]}  Ne6 {[%clk 0:00:02]} 0-1


[Site "https://www.chess.com"]

[Event "Titled Tuesday Blitz April 12 Early 2022"]
[White "Pranav, V"]
[Black "Mustafayev, Farid"]
[WhiteFideId "25060783"]
[BlackFideId "13408771"]
[WhiteElo "2349"]
[BlackElo "2115"]
[Result "1-0"]
[Round "05"]
[TimeControl "180+1"]
[Date "2022.04.12"]
[WhiteClock "0:00:49"]
[BlackClock "0:00:39"]

1. e4 {[%clk 0:03:00]}  c6 {[%clk 0:02:58]} 2. d4 {[%clk 0:02:59]}  d5 {[%clk 0:02:56]} 3. e5 {[%clk 0:02:59]}  Bf5 {[%clk 0:02:55]} 4. Nf3 {[%clk 0:03:00]}  e6 {[%clk 0:02:55]} 5. Be2 {[%clk 0:02:59]}  Qb6 {[%clk 0:02:54]} 6. O-O {[%clk 0:02:59]}  Nd7 {[%clk 0:02:54]} 7. Nbd2 {[%clk 0:02:56]}  Ne7 {[%clk 0:02:53]} 8. Nb3 {[%clk 0:02:56]}  h6 {[%clk 0:02:51]} 9. a4 {[%clk 0:02:56]}  g5 {[%clk 0:02:49]} 10. Ne1 {[%clk 0:02:54]}  Bg7 {[%clk 0:02:48]} 11. a5 {[%clk 0:02:54]}  Qc7 {[%clk 0:02:47]} 12. Nd3 {[%clk 0:02:51]}  f6 {[%clk 0:02:43]} 13. Bh5+ {[%clk 0:02:50]}  Kf8 {[%clk 0:02:27]} 14. f4 {[%clk 0:02:45]}  Kg8 {[%clk 0:02:21]} 15. Nbc5 {[%clk 0:02:31]}  Nf8 {[%clk 0:02:01]} 16. Qe2 {[%clk 0:02:22]}  fxe5 {[%clk 0:01:46]} 17. Nxe5 {[%clk 0:02:16]}  Bxe5 {[%clk 0:01:45]} 18. dxe5 {[%clk 0:01:59]}  gxf4 {[%clk 0:01:35]} 19. Bxf4 {[%clk 0:02:00]}  Kg7 {[%clk 0:01:25]} 20. Ra3 {[%clk 0:01:47]}  Neg6 {[%clk 0:01:21]} 21. Rg3 {[%clk 0:01:42]}  Qe7 {[%clk 0:01:19]} 22. Be3 {[%clk 0:01:38]}  Kh7 {[%clk 0:01:16]} 23. Nd3 {[%clk 0:01:32]}  Rg8 {[%clk 0:01:12]} 24. Qd2 {[%clk 0:01:29]}  Nd7 {[%clk 0:01:07]} 25. Bxh6 {[%clk 0:01:14]}  Ngxe5 {[%clk 0:01:00]} 26. Bg5 {[%clk 0:01:10]}  Qd6 {[%clk 0:00:51]} 27. Qf4 {[%clk 0:01:08]}  Bxd3 {[%clk 0:00:44]} 28. Qh4 {[%clk 0:00:59]}  Qc5+ {[%clk 0:00:40]} 29. Kh1 {[%clk 0:00:56]}  Qc4 {[%clk 0:00:39]} 30. Bg6+ {[%clk 0:00:49]} 1-0


[Site "https://www.chess.com"]

[Event "Titled Tuesday Blitz April 12 Early 2022"]
[White "Roman, Rodrigo"]
[Black "Agasarov, Benik"]
[WhiteFideId "3701220"]
[BlackFideId "13314823"]
[WhiteElo "2001"]
[BlackElo "2528"]
[Result "0-1"]
[Round "05"]
[TimeControl "180+1"]
[Date "2022.04.13"]
[WhiteClock "0:00:04"]
[BlackClock "0:00:57"]

1. e4 {[%clk 0:02:57]}  e5 {[%clk 0:02:59]} 2. Nf3 {[%clk 0:02:57]}  Nc6 {[%clk 0:02:58]} 3. Bb5 {[%clk 0:02:57]}  Bc5 {[%clk 0:02:55]} 4. c3 {[%clk 0:02:56]}  Nf6 {[%clk 0:02:52]} 5. O-O {[%clk 0:02:55]}  O-O {[%clk 0:02:52]} 6. d4 {[%clk 0:02:54]}  Bb6 {[%clk 0:02:52]} 7. Re1 {[%clk 0:02:44]}  d6 {[%clk 0:02:47]} 8. Bxc6 {[%clk 0:02:40]}  bxc6 {[%clk 0:02:48]} 9. dxe5 {[%clk 0:02:38]}  dxe5 {[%clk 0:02:49]} 10. Qxd8 {[%clk 0:02:39]}  Rxd8 {[%clk 0:02:50]} 11. Bg5 {[%clk 0:02:34]}  Rd6 {[%clk 0:02:43]} 12. Nbd2 {[%clk 0:02:23]}  Ng4 {[%clk 0:02:41]} 13. Re2 {[%clk 0:02:14]}  Ba6 {[%clk 0:02:40]} 14. c4 {[%clk 0:02:08]}  f6 {[%clk 0:02:38]} 15. Bh4 {[%clk 0:02:06]}  Rad8 {[%clk 0:02:37]} 16. h3 {[%clk 0:02:05]}  Nh6 {[%clk 0:02:36]} 17. b3 {[%clk 0:02:00]}  Rd3 {[%clk 0:02:29]} 18. Nf1 {[%clk 0:01:57]}  g5 {[%clk 0:02:18]} 19. Nxg5 {[%clk 0:01:41]}  fxg5 {[%clk 0:02:16]} 20. Bxg5 {[%clk 0:01:42]}  R8d6 {[%clk 0:02:15]} 21. c5 {[%clk 0:01:20]}  Bxc5 {[%clk 0:02:11]} 22. Be7 {[%clk 0:01:20]}  Rd1 {[%clk 0:02:08]} 23. Re1 {[%clk 0:01:12]}  Rxa1 {[%clk 0:01:56]} 24. Rxa1 {[%clk 0:01:11]}  Bd4 {[%clk 0:01:53]} 25. Bxd6 {[%clk 0:01:07]}  Bxa1 {[%clk 0:01:50]} 26. Bxc7 {[%clk 0:01:07]}  Nf7 {[%clk 0:01:49]} 27. Ne3 {[%clk 0:01:02]}  Ng5 {[%clk 0:01:49]} 28. Ng4 {[%clk 0:00:46]}  Nxe4 {[%clk 0:01:45]} 29. Bxe5 {[%clk 0:00:46]}  Bxe5 {[%clk 0:01:42]} 30. Nxe5 {[%clk 0:00:47]}  Bb7 {[%clk 0:01:42]} 31. f3 {[%clk 0:00:41]}  Nc3 {[%clk 0:01:42]} 32. a4 {[%clk 0:00:37]}  Nb1 {[%clk 0:01:35]} 33. Nc4 {[%clk 0:00:33]}  c5 {[%clk 0:01:31]} 34. Kf2 {[%clk 0:00:11]}  Nc3 {[%clk 0:01:25]} 35. Ke3 {[%clk 0:00:10]}  Bd5 {[%clk 0:01:24]} 36. Kd3 {[%clk 0:00:10]}  Na2 {[%clk 0:01:24]} 37. Nd2 {[%clk 0:00:07]}  Nb4+ {[%clk 0:01:24]} 38. Kc3 {[%clk 0:00:07]}  Kf7 {[%clk 0:01:24]} 39. h4 {[%clk 0:00:05]}  Kf6 {[%clk 0:01:23]} 40. g3 {[%clk 0:00:05]}  Ke5 {[%clk 0:01:22]} 41. f4+ {[%clk 0:00:05]}  Kf5 {[%clk 0:01:23]} 42. Nf1 {[%clk 0:00:05]}  Be6 {[%clk 0:01:18]} 43. Ne3+ {[%clk 0:00:05]}  Ke4 {[%clk 0:01:19]} 44. Nc4 {[%clk 0:00:04]}  Nd5+ {[%clk 0:01:16]} 45. Kd2 {[%clk 0:00:04]}  Kf3 {[%clk 0:01:14]} 46. Nd6 {[%clk 0:00:02]}  Kxg3 {[%clk 0:01:14]} 47. f5 {[%clk 0:00:03]}  Bg8 {[%clk 0:01:13]} 48. Ne4+ {[%clk 0:00:04]}  Kxh4 {[%clk 0:01:12]} 49. Nxc5 {[%clk 0:00:04]}  Kg5 {[%clk 0:01:10]} 50. f6 {[%clk 0:00:05]}  Nxf6 {[%clk 0:01:09]} 51. b4 {[%clk 0:00:04]}  Nd5 {[%clk 0:01:08]} 52. b5 {[%clk 0:00:03]}  Nb6 {[%clk 0:01:08]} 53. a5 {[%clk 0:00:03]}  Nc4+ {[%clk 0:01:08]} 54. Kc3 {[%clk 0:00:04]}  Nxa5 {[%clk 0:01:07]} 55. Kb4 {[%clk 0:00:05]}  Nc4 {[%clk 0:01:04]} 56. Nd7 {[%clk 0:00:04]}  Nb6 {[%clk 0:00:59]} 57. Nb8 {[%clk 0:00:03]}  Bd5 {[%clk 0:00:57]} 58. Kc5 {[%clk 0:00:02]}  h5 {[%clk 0:00:56]} 59. Nc6 {[%clk 0:00:02]}  Bxc6 {[%clk 0:00:56]} 60. Kxc6 {[%clk 0:00:02]}  h4 {[%clk 0:00:57]} 61. Kb7 {[%clk 0:00:03]}  h3 {[%clk 0:00:56]} 62. Kxa7 {[%clk 0:00:04]}  Nd5 {[%clk 0:00:57]} 0-1


[Site "https://www.chess.com"]